Workbook

Sheet энргоэфф
A2: Расход тепловой энергии на отопление и вентиляцию здания за отопительный период , кВт·ч/год, | B2: 100
A4: расчётный нормативный средний суточный(СП 30.13330, Таблица А.2). расход горячей воды на человека | B4: 70
A5: температура горячей воды | B5: 60
A6: температура холодной воды в летний период | B6: 15
A7: температура холодной воды в отопительный период | B7: 5
A8: продолжительность отопительного периода | B8: 239
A9: продолжительность перерыва в горячем водоснабжении | B9: 10
A10: продолжительность использования ГВС в летний период, сут | B10: =365-B8-B9 -> 116
A11: коэффициент, учитывающий снижение горячего водопотребления в летний период для МКД | B11: 0.9
A12: то же для остальных зданий | B12: 1
A13: Число жителей | B13: 150
A14: средний расход горячей воды для квартир МКД за сутки, м3/сут | B14: =B4*B13*0.001*(B8+B11*B10)/365 -> 9.878630137
A16: расчётный нормативный среднесуточный расход горячей воды на человека, л⁄(сут ∙ чел) в нежилой части | B16: 4.5
A17: Число служащих | B17: 10
A18: среднесуточный расход горячей воды нежилой части МКД, м3/сут | B18: =B16*B17*0.001*(B8+B12*B10)/365 -> 0.04376712329
A20: средний расход горячей воды для квартир и полезной площади нежилых помещений МКД, м3/сут | B20: =B18+B14 -> 9.92239726
A21: Коэффициент 𝑘тр, учитывающий тепловые потери в трубопроводе | B21: 0.3
A22: К1 установка первой ступени приготовления горячей воды за счет утилизации тепла вентиляционных выбросов | B22: 0.85
A23: К2 установка частотного регулирования приводов насосов в циркуляционном трубопроводе системы горячего водоснабжения | B23: 0.8
A24: К3 установка автоматизированного индивидуального теплового пункта | B24: 0.8
A25: К4 устройство гибридной системы ГВС с использованием солнечных коллекторов воды | B25: 0.75
A26: К5 установка первой ступени приготовления горячей воды с помощью тепловых насосов | B26: 0.7
A27: К6 устройство гибридной системы ГВС с аккумулированием тепла и тепловыми насосами, использующими теплоту грунта и тепловентиляционных выбросов | B27: 0.4
A28: коэффициент эффективности использования ГВС | B28: =B23*B24 -> 0.64
A29: Среднесуточный расход горячей воды для квартир МКД за сутки | B29: =1.17*B20*(B5-B7)*((365-B9)*B21+B8+B11*B10*(B5-B6)/(B5-B7))*B28 -> 176092.1333
A31: Площадь | B31: 5000
A32: Удельный годовой расход тепловой энергии на горячее водоснабжение МКД, кВт∙ч/м3 | B32: =B29/B31 -> 35.21842665
A33: Удельный годовой расход электрической энергии на общедомовые нужды МКД, оборудованных лифтом | B33: 10
A34: Суммарный удельный годовой расхода энергетических ресурсов МКД, кВт∙ч/м2: | B34: =B2+B32+B33 -> 145.2184267

Sheet энргоэфф (2)
A1: Наименование показателя | B1: °С сут. отопит. периода | C1: Этажность многоквартирного дома
C2: 2 эт. | D2: 4 эт. | E2: 6 эт | F2: 8 эт | G2: 10 эт | H2: =>12 эт.
A3: Расход тепловой энергии на отопление, вентиляцию, горячее водоснабжение и электроэнергии на общедомовые нужды <*> | B3: 2000 | C3: 215 | D3: 206 | E3: 203 | F3: 201 | G3: 199 | H3: 198
B4: 3000 | C4: 228 | D4: 216 | E4: 212 | F4: 208 | G4: 205 | H4: 203
B5: 4000 | C5: 256 | D5: 239 | E5: 234 | F5: 229 | G5: 225 | H5: 223
B6: 5000 | C6: 284 | D6: 263 | E6: 256 | F6: 251 | G6: 245 | H6: 242
B7: 6000 | C7: 312 | D7: 287 | E7: 278 | F7: 272 | G7: 265 | H7: 262
B8: 8000 | C8: 370 | D8: 337 | E8: 326 | F8: 317 | G8: 308 | H8: 304
B9: 10000 | C9: 426 | D9: 384 | E9: 370 | F9: 359 | G9: 348 | H9: 342
A10: в том числе тепловой энергии на отопление и вентиляцию | B10: 2000 | C10: 67 | D10: 56 | E10: 44 | F10: 42 | G10: 40 | H10: 39
B11: 3000 | C11: 100 | D11: 83 | E11: 67 | F11: 63 | G11: 60 | H11: 58
B12: 4000 | C12: 133 | D12: 111 | E12: 89 | F12: 84 | G12: 80 | H12: 78
B13: 5000 | C13: 167 | D13: 139 | E13: 111 | F13: 106 | G13: 100 | H13: 97
B14: 6000 | C14: 200 | D14: 167 | E14: 133 | F14: 127 | G14: 120 | H14: 117
B15: 8000 | C15: 253 | D15: 211 | E15: 169 | F15: 160 | G15: 152 | H15: 148
B16: 10000 | C16: 317 | D16: 264 | E16: 211 | F16: 201 | G16: 190 | H16: 185
A18: ГСОП | B18: 5100 | C18: =INDEX(Diar,MATCH(Val,Diap),1)+(Val-INDEX(Diap,MATCH(Val,Diap),1))/(INDEX(Diap,MATCH(Val,Diap)+1,1)-INDEX(Diap,MATCH(Val,Diap),1))*(INDEX(Diar,MATCH(Val,Diap)+1,1)-INDEX(Diar,MATCH(Val,Diap),1)) -> 286.8 | D18: =INDEX(Diar,MATCH(Val,Diap),2)+(Val-INDEX(Diap,MATCH(Val,Diap),1))/(INDEX(Diap,MATCH(Val,Diap)+1,1)-INDEX(Diap,MATCH(Val,Diap),1))*(INDEX(Diar,MATCH(Val,Diap)+1,2)-INDEX(Diar,MATCH(Val,Diap),2)) -> 265.4 | E18: =INDEX(Diar,MATCH(Val,Diap),3)+(Val-INDEX(Diap,MATCH(Val,Diap),1))/(INDEX(Diap,MATCH(Val,Diap)+1,1)-INDEX(Diap,MATCH(Val,Diap),1))*(INDEX(Diar,MATCH(Val,Diap)+1,3)-INDEX(Diar,MATCH(Val,Diap),3)) -> 258.2 | F18: =INDEX(Diar,MATCH(Val,Diap),4)+(Val-INDEX(Diap,MATCH(Val,Diap),1))/(INDEX(Diap,MATCH(Val,Diap)+1,1)-INDEX(Diap,MATCH(Val,Diap),1))*(INDEX(Diar,MATCH(Val,Diap)+1,4)-INDEX(Diar,MATCH(Val,Diap),4)) -> 253.1 | G18: =INDEX(Diar,MATCH(Val,Diap),5)+(Val-INDEX(Diap,MATCH(Val,Diap),1))/(INDEX(Diap,MATCH(Val,Diap)+1,1)-INDEX(Diap,MATCH(Val,Diap),1))*(INDEX(Diar,MATCH(Val,Diap)+1,5)-INDEX(Diar,MATCH(Val,Diap),5)) -> 247 | H18: =INDEX(Diar,MATCH(Val,Diap),6)+(Val-INDEX(Diap,MATCH(Val,Diap),1))/(INDEX(Diap,MATCH(Val,Diap)+1,1)-INDEX(Diap,MATCH(Val,Diap),1))*(INDEX(Diar,MATCH(Val,Diap)+1,6)-INDEX(Diar,MATCH(Val,Diap),6)) -> 244
B19: =Val -> 5100 | C19: =INDEX(Diarr,MATCH(Val,Diapp),1)+(Val-INDEX(Diapp,MATCH(Val,Diapp),1))/(INDEX(Diapp,MATCH(Val,Diapp)+1,1)-INDEX(Diapp,MATCH(Val,Diapp),1))*(INDEX(Diarr,MATCH(Val,Diapp)+1,1)-INDEX(Diarr,MATCH(Val,Diapp),1)) -> 170.3 | D19: =INDEX(Diarr,MATCH(Val,Diapp),2)+(Val-INDEX(Diapp,MATCH(Val,Diapp),1))/(INDEX(Diapp,MATCH(Val,Diapp)+1,1)-INDEX(Diapp,MATCH(Val,Diapp),1))*(INDEX(Diarr,MATCH(Val,Diapp)+1,2)-INDEX(Diarr,MATCH(Val,Diapp),2)) -> 141.8 | E19: =INDEX(Diarr,MATCH(Val,Diapp),3)+(Val-INDEX(Diapp,MATCH(Val,Diapp),1))/(INDEX(Diapp,MATCH(Val,Diapp)+1,1)-INDEX(Diapp,MATCH(Val,Diapp),1))*(INDEX(Diarr,MATCH(Val,Diapp)+1,3)-INDEX(Diarr,MATCH(Val,Diapp),3)) -> 113.2 | F19: =INDEX(Diarr,MATCH(Val,Diapp),4)+(Val-INDEX(Diapp,MATCH(Val,Diapp),1))/(INDEX(Diapp,MATCH(Val,Diapp)+1,1)-INDEX(Diapp,MATCH(Val,Diapp),1))*(INDEX(Diarr,MATCH(Val,Diapp)+1,4)-INDEX(Diarr,MATCH(Val,Diapp),4)) -> 108.1 | G19: =INDEX(Diarr,MATCH(Val,Diapp),5)+(Val-INDEX(Diapp,MATCH(Val,Diapp),1))/(INDEX(Diapp,MATCH(Val,Diapp)+1,1)-INDEX(Diapp,MATCH(Val,Diapp),1))*(INDEX(Diarr,MATCH(Val,Diapp)+1,5)-INDEX(Diarr,MATCH(Val,Diapp),5)) -> 102 | H19: =INDEX(Diarr,MATCH(Val,Diapp),6)+(Val-INDEX(Diapp,MATCH(Val,Diapp),1))/(INDEX(Diapp,MATCH(Val,Diapp)+1,1)-INDEX(Diapp,MATCH(Val,Diapp),1))*(INDEX(Diarr,MATCH(Val,Diapp)+1,6)-INDEX(Diarr,MATCH(Val,Diapp),6)) -> 99
B20: Нормативный | D20: Расчетный | F20: Отклонение | H20: Класс
A21: Выбираем нужный | B21: =F18 -> 253.1 | D21: =энргоэфф!B34 -> 145.2184267 | F21: =(B21-D21)/B21*100 -> 42.62409061 | H21: =_xlfn.IFS(F21>60,"А++ Высочайший",F21>50,"А+ Высочайший",F21>40,"А Очень высокий",F21>30,"B Высокий",F21>15,"C Повышенный",F21>0,"D Нормальный",F21>-25,"E Пониженный",F21>-50,"F Низкий",F21<-50,"G Очень низкий") -> А Очень высокий
B22: =F19 -> 108.1 | D22: =энргоэфф!B2 -> 100 | F22: =(B22-D22)/B22*100 -> 7.49306198
